Cogmind - Beta 14 @@@ ROGUE MODE // 2024.09.11 @ 12:51:52 // AFD2020/Player2 Player: Minty Result: Destroyed by E0-ND1(R) with Subdweller Machine Gun Performance ------------- Evolutions (0) 0 Regions Visited (2) 400 Robots Destroyed (16) 80 Value Destroyed (457) 457 Prototype IDs (0) 0 Alien Tech Used (0) 0 Bonus (67) 67 TOTAL SCORE: 1004 Bonus ------- High Alert Combat Kills 16 Follower Combat Kills 186 Friendly Fire -135 Cogmind --------- Core Integrity 0/250 Matter 240/300 Energy 160/160 System Corruption 0% Temperature Cool (0) Movement Flying (277) Ox3 Location -10/Subcaves Parts ------- > --- POWER (1) -------- Light Nuclear Core > --- PROPULSION (2) --- Flight Unit Flight Unit > --- UTILITY (2) ------ Scrap Shield > --- WEAPON (2) ------- Subdweller Machine Gun Grenade Launcher > --- INVENTORY (5) ---- Improved Heat Sink Small Storage Unit Seismic Detector Enhanced Flamer Piercing Trap Peak State ------------ > --- POWER ------------ Light Nuclear Core > --- PROPULSION ------- Flight Unit Flight Unit > --- UTILITY ---------- Scrap Shield > --- WEAPON ----------- Subdweller Machine Gun Enhanced Flamer > --- INVENTORY -------- Improved Heat Sink Small Storage Unit Seismic Detector Grenade Launcher Piercing Trap [Rating: 14] Favorites ----------- Power Light Nuclear Core Engine Ion Engine Power Core Light Nuclear Core Propulsion Flight Unit Leg Aluminum Leg Wheel Wheel Flight Unit Flight Unit Utility Scrap Shield Storage Small Storage Unit Protection Scrap Shield Weapon Grenade Launcher Energy Gun Small Laser Ballistic Gun Subdweller Machine Gun Launcher Grenade Launcher Special Weapon Enhanced Flamer Build | -11 -10 -10 ------- Run | Yrd Mat Sub Slots Evolved . | . . . Power . | . . . Propulsion . | . . . Utility . | . . . Weapon . | . . . Parts Attached 15 | . 11 4 Power 2 | . 2 . Engine 1 | . 1 . Core 1 | . 1 . Reactor . | . . . Propulsion 6 | . 6 . Treads . | . . . Leg . | . . . Wheel 2 | . 2 . Hover . | . . . Flight 4 | . 4 . Utility 2 | . 1 1 Device . | . . . Storage 1 | . 1 . Processor . | . . . Hackware . | . . . Protection 1 | . . 1 Artifact . | . . . Weapon 5 | . 2 3 Energy Gun 1 | . 1 . Energy Cannon . | . . . Ballistic Gun 1 | . . 1 Ballistic Cannon . | . . . Launcher 2 | . 1 1 Special Weapon 1 | . . 1 Impact Weapon . | . . . Slashing Weapon . | . . . Piercing Weapon . | . . . Special Melee Weapon . | . . . Unidentified Prototypes . | . . . Parts Lost 4 | . 4 . Power . | . . . Propulsion 4 | . 4 . Utility . | . . . Weapon . | . . . Highest Loss Streak 2 | . 2 . To Critical Strikes . | . . . Average Slot Usage (%) 73 | . 64 76 Engine 3 | . 12 . Core 10 | . 1 14 Wheel 1 | . 5 . Flight 26 | . 20 28 Protection 7 | . . 10 Energy Gun 1 | . 6 . Ballistic Gun 9 | . 9 9 Launcher 11 | . 4 13 Peak Build Rating 14 | . 6 14 Average Rating 8 | . 4 10 On Entrance 6 | 6 6 6 Naked Turns . | . . . Heaviest Build 30 | 13 13 30 Greatest Support 20 | 20 20 8 Greatest Overweight (x) 4 | . 4 3 Average Overweight (x) . | . . 1 Largest Inventory Capacity 10 | . 10 5 Average Capacity 5 | . 5 5 Most Carried 6 | . 6 5 Average Carried 4 | . 3 4 Final Capacity 8 | 8 5 5 Final Carried 6 | 6 5 5 Class Distribution -------------------- 52% | Scavenger-Mutant 47% | Mutant Dominant Class ---------------- Mutant | -10/Materials Scavenger-Mutant | -10/Subcaves Resources | -11 -10 -10 ----------- Run | Yrd Mat Sub Matter Collected 684 | 173 386 125 Remotely . | . . . Salvage Created 491 | . 410 81 Parts 26 | . 20 6 Haulers Intercepted 2 | . 2 . Recyclers Shooed . | . . . Parts Field Recycled . | . . . Retrieved Matter . | . . . Parts Self-Destructed . | . . . Prevented . | . . . Kills | -11 -10 -10 ------- Run | Yrd Mat Sub Combat Hostiles Destroyed 11 | . 8 3 Guns 4 | . 4 . AOE 7 | . 4 3 Classes Destroyed 7 | . 6 1 Tunneler 1 | . 1 . Hauler 2 | . 2 . Recycler 1 | . 1 . Operator 1 | . 1 . Swarmer 2 | . 2 . Grunt 6 | . 6 . Subdweller 3 | . . 3 Best Kill Streak 7 | . 7 2 Combat Bots Only 2 | . 2 2 Max Kills in Single Turn 2 | . 2 1 Gunslinging . | . . . Exploded 2 | . 2 1 Melee . | . . . Uniques/NPCs Destroyed . | . . . Combat | -11 -10 -10 -------- Run | Yrd Mat Sub Hostile Shots Fired 92 | . 71 21 Missed 35 | . 30 5 Damage Taken 793 | . 413 380 Core 139 | . 83 56 Absorbed by Shields . | . . . Core Remaining (%) 100 | 100 . . Volleys Fired 71 | . 52 19 Largest 2 | . 2 2 Hottest 110 | . 60 110 Shots Fired 96 | . 71 25 Gun 64 | . 53 11 Cannon . | . . . Launcher 29 | . 18 11 Special 3 | . . 3 Kinetic 45 | . 34 11 Thermal 22 | . 19 3 Explosive 29 | . 18 11 Electromagnetic . | . . . Robot Hit Streak 6 | . 6 3 Robot Miss Streak 4 | . 4 3 Penetration Max . | . . . Secondary Targets 1 | . 1 . Max Gunslinging Chain 1 | . 1 . Shots Hit Robots 41 | . 32 9 Core Hits 32 | . 22 10 Critical Kills . | . . . Critical Parts Destroyed . | . . . Critical Strikes . | . . . Melee Attacks . | . . . Impact . | . . . Slashing . | . . . Piercing . | . . . Sneak Attacks . | . . . Combat Hostiles . | . . . Follow-up Attacks . | . . . Damage Inflicted 1621 | . 911 710 Guns 423 | . 338 85 Cannons . | . . . Explosions 1176 | . 573 603 Melee . | . . . Ramming . | . . . Kinetic 327 | . 242 85 Thermal 118 | . 96 22 Explosive 1176 | . 573 603 Electromagnetic . | . . . Impact . | . . . Slashing . | . . . Piercing . | . . . Highest Corruption . | . . . Average Corruption . | . . . Corruption Purged . | . . . Corruption Blocked . | . . . Overload Shots . | . . . Overflow Damage 53 | . 53 . Projectiles . | . . . Explosions 53 | . 53 . Melee . | . . . Knockbacks . | . . . Impact . | . . . Kinetic . | . . . Secondary . | . . . Self-Inflicted Damage 34 | . . 34 Shots 2 | . . 2 Rammed . | . . . Targets Rammed . | . . . Kicked . | . . . Crushed . | . . . Highest Temperature 59 | . 59 . Average Temperature 17 | . 17 . Received Heat Transfer 96 | . 78 18 Siege Activations . | . . . Robots Corrupted . | . . . Combat Hostiles . | . . . Parts Fried . | . . . Impact Corruptions . | . . . Robots Melted . | . . . Combat Hostiles . | . . . Parts Melted . | . . . Heat Transferred 385 | . 225 160 Parts Sabotaged . | . . . Parts Stolen . | . . . Parts Stripped . | . . . Power Chain Reactions . | . . . Alert | -11 -10 -10 ------- Run | Yrd Mat Sub Peak Influence 592 | . 592 . Initial . | . . . Average 268 | . 268 . Maximum Alert Level 2 | . 2 . Low Security (%) 45 | . 45 . Level 1 23 | . 23 . Level 2 30 | . 30 . Level 3 . | . . . Level 4 . | . . . Level 5 . | . . . High Security . | . . . Max Security . | . . . Squads Dispatched 5 | . 5 . Investigation 3 | . 3 . Extermination . | . . . Reinforcement 2 | . 2 . Assault . | . . . Garrison . | . . . Intercept . | . . . Searches Triggered . | . . . Construction Impeded . | . . . Haulers Reinforced . | . . . Active Scanning Responses . | . . . Cargo Convoy Interrupts . | . . . Stealth | -11 -10 -10 --------- Run | Yrd Mat Sub Distress Signals 1 | . 1 . Communications Jammed . | . . . Distress Signals . | . . . Times Spotted 31 | . 23 8 Peak Tracking Total 6 | . 6 3 Tactical Retreats . | . . . Traps | -11 -10 -10 ------- Run | Yrd Mat Sub Traps Triggered 1 | . 1 . Indirectly . | . . . Trap Hack Attempts . | . . . Triggered . | . . . Disarmed . | . . . Reprogrammed . | . . . Reused . | . . . Traps Extracted . | . . . Installed . | . . . Triggered . | . . . Most Traps Carried 1 | . . 1 Machines | -11 -10 -10 ---------- Run | Yrd Mat Sub Machines Disabled 2 | . 2 . Max in Single Turn 1 | . 1 . Machines Repaired . | . . . Machines Dismantled . | . . . Machines Sabotaged 1 | . 1 . Overloaded Fab Kills . | . . . Hacking | -11 -10 -10 --------- Run | Yrd Mat Sub Machines Accessed 5 | . 4 1 Terminals 4 | . 4 . Fabricators . | . . . Repair Stations . | . . . Recycling Units . | . . . Scanalyzers . | . . . Garrison Access . | . . . Total Hacks 22 | . 19 3 Successful 14 | . 11 3 Failed 8 | . 8 . Catastrophic . | . . . Database Lockouts . | . . . Manual 12 | . 12 . Terminals 19 | . 19 . Fabricators . | . . . Repair Stations . | . . . Recycling Units . | . . . Scanalyzers . | . . . Garrison Access . | . . . Terminal Hacks 10 | . 7 3 Record 3 | . . 3 Robot Analysis 1 | . 1 . Terminal Index 1 | . 1 . Alert Level 2 | . 2 . Patrol Status 1 | . 1 . Recall Investigation 1 | . 1 . Zone Layout 1 | . 1 . Fabricator Hacks . | . . . Repair Station Hacks . | . . . Recycling Unit Hacks . | . . . Scanalyzer . | . . . Garrison Access Hacks . | . . . Unauthorized Hacks 4 | . 4 . Terminals 4 | . 4 . Botnet 1 | . 1 . Skim 2 | . 2 . Sabotage 1 | . 1 . Fabricators . | . . . Repair Stations . | . . . Recycling Units . | . . . Scanalyzers . | . . . Garrison Access . | . . . Data Cores Recovered . | . . . Used . | . . . Hacking Detections 4 | . 4 . Full Trace Events 2 | . 2 . Feedback Events . | . . . Feedback Blocked . | . . . Robot Schematics Acquired . | . . . Robots Built . | . . . Authchips . | . . . Time . | . . . Total Robot Build Rating . | . . . Part Schematics Acquired . | . . . Parts Built . | . . . Authchips . | . . . Time . | . . . Total Part Build Rating . | . . . Parts Repaired . | . . . Time . | . . . Parts Recycled . | . . . Recycled Matter . | . . . Retrieved Matter . | . . . Retrieved Components . | . . . Parts Scanalyzed . | . . . Part Schematics Acquired . | . . . Parts Damaged . | . . . Bothacking | -11 -10 -10 ------------ Run | Yrd Mat Sub Used RIF Installer . | . . . Robots Hacked . | . . . Non-combat . | . . . Combat . | . . . Robot Hacks Applied . | . . . Relay Couplers Released . | . . . Fabnet Peak Effective % . | . . . Robots Rewired . | . . . Allies Hacked . | . . . Hacks Repelled . | . . . Allies | -11 -10 -10 -------- Run | Yrd Mat Sub Total Allies 1 | . 1 . Largest Group 1 | . 1 1 Highest-Rated Group 65 | . 58 65 Highest-Rated Ally 65 | . 58 65 Total Orders . | . . . Ally Attacks 53 | . 34 19 Total Damage 851 | . 276 575 Kills 12 | . 7 5 Allies Corrupted . | . . . Allies Melted . | . . . Intel | -11 -10 -10 ------- Run | Yrd Mat Sub Robot Analysis Total 1 | . 1 . Derelict Logs Recovered . | . . . Drone Launches . | . . . Drone Recoveries . | . . . Exploration | -11 -10 -10 ------------- Run | Yrd Mat Sub Turns Passed 1400 | . 371 1029 Spaces Moved 982 | 1 387 594 Core 8 | . 8 . Treads . | . . . Legs 1 | 1 . . Wheels 34 | . 34 . Hover . | . . . Flight 939 | . 345 594 Fastest Speed 37 | 120 37 37 Average Speed 100 | 120 43 137 Slowest Speed 277 | 120 250 277 Overloaded Moves . | . . . Propulsion Burnouts . | . . . Robots Hopped 5 | . 5 . Cave-ins Triggered . | . . . Exploration Rate (%) 32 | 2 63 33 Regions Visited 2 Branch Regions 1 Pre-discovered Areas . | . . . Known Exits Taken . | . . . Unknown Exits Taken 2 | 1 1 . Scrap Searched 8 | . . 8 Spaces Dug 4 | . . 4 Terrain Destroyed 116 | . 44 72 Melee . | . . . Projectile . | . . . AOE 116 | . 44 72 Terrain Rammed . | . . . Walls Destroyed . | . . . Machines Disabled . | . . . Actions | -11 -10 -10 --------- Run | Yrd Mat Sub Total 1296 | . 517 779 Wait 200 | . 47 153 Move 971 | . 377 594 Hop 4 | . 4 . Pick Up 11 | . 9 2 Fast Attach 6 | . 4 2 Attach 5 | . 5 . Detach 3 | . 3 . Swap 4 | . 2 2 Drop 16 | . 14 2 Fire 71 | . 52 19 Melee . | . . . Ram . | . . . Kick . | . . . Crush . | . . . Escape Stasis . | . . . Rewire . | . . . Trap . | . . . Miscellaneous 5 | . . 5 Route ------- -11/Scrapyard -10/Materials (discovered 2 exits: [*Min] / *Sub) -10/Subcaves (discovered 2 exits: [*Mat x2]) History --------- Turn | Location | Event 1 | -11/Scrapyard | Discovered new exit (range 0) 1 | -11/Scrapyard | Entered Materials 124 | -10/Materials | Discovered new exit (range 9) 299 | -10/Materials | Core integrity fell below 50% 309 | -10/Materials | Build established: Mutant 324 | -10/Materials | Discovered new exit (range 14) 372 | -10/Materials | Entered Subcaves 373 | -10/Subcaves | Discovered new exit (range 15) 438 | -10/Subcaves | Discovered new exit (range 7) 971 | -10/Subcaves | Build established: Scavenger-Mutant 1077 | -10/Subcaves | Disturbed a concealed Subdweller 1235 | -10/Subcaves | Visited Clippyterm 1243 | -10/Subcaves | Learned 40 Factory zone layouts 1393 | -10/Subcaves | A Subdweller sparked back to life 1393 | -10/Subcaves | A Subdweller sparked back to life 1393 | -10/Subcaves | A Subdweller sparked back to life 1394 | -10/Subcaves | Core integrity fell below 20% 1401 | -10/Subcaves | Destroyed by E0-ND1(R) with Subdweller Machine Gun Last Messages --------------- It looks like you want to prove yourself as a member of the Cartography Club, why not cheat using advanced predictive AI techniques? Data stored: Factory zone layouts (x40). >>Record "Hexidium" It looks like you're searching for the Unchained HQ. I could tell you where it is but then I'd have to kill you. 01311_ 2S-W1Y(R) destroyed. 01314_ VC-5PZ(R) destroyed. 01318_ JQ-76B(O) collects matter. 01324_ Scrap Shield Fragment affixed to Scrap Shield (+46). 01325_ Player 2 drops Sub. Optics. 01325_ Player 2 attaches Sub. Optics. 01331_ Scrap Shield Fragment affixed to Scrap Shield (+48). 01337_ Scrap Shield Fragment affixed to Scrap Shield (+47). 01344_ Scrap Shield Fragment affixed to Scrap Shield (+8). 01345_ XZ-ISG(u) builds Twisted Machinery. 01393_ E0-ND1(R) creaks and sparks as it begins to move. 01393_ 4I-76O(R) creaks and sparks as it begins to move. 01393_ H8-N4R(R) creaks and sparks as it begins to move. 01397_ The unstable cave ceiling collapses. Map ----- +----------------------------------------------------+ | ?????????????????????????????????????????????????? | | ?????????????????????????????????????????????????? | | ?????????????????????????????????????????????????? | | ?????????????????????????????????????????????????? | | ?????????????????????????????????????????????????? | | ?????????????????????????????????????????????????? | | ?????????????????????????????????????????????????? | | ?????????????????????????????????????????????????? | | ?????????????????????????????????????????????????? | | ?????????????????????????????????????????????????? | | ???????????????????????????###???????????????????? | | ?????????????????????????? #???????????????????? | | ?????????????????????????? #???????????????????? | | ?????????????????????????? ##??????????????????? | | ?????????????????????????? ??????????????????? | | ?????????????????????????? #??????????????????? | | ?????????????????????????? ##?????????????????? | | ?????????????????????????? #?????????????????? | | ????????????????????????## ??????????????????? | | ???????????????????????## #??????????????????? | | ??????????????????????## #??????????????????? | | ???????????????????#### #??????????????????? | | ??????????????????## ## ???????????????????? | | ?????????????????## #?# ?????????????????????? | | ????????????????## #?# #??????????????????????? | | ???????????????## #?##@######?????????????????? | | ???????????????# ### #?????????????????? | | ????????????????# # @ #?????????????????? | | ???????????????## #?????????????????? | | ??????##########" ## #??????????????? | | ??????#"""""# "" ### =R #??????????????? | | ??????#""X""# = " ### R # ##??????????????? | | ??????#" "# !# ### & % ####???????????????? | | ??????### ### [ #" ##?# ??????????????????? | | ??????### ## =#" #??< R ##?????????????????? | | ??????# #" ""#?? " #??????????????????? | | ??????# """ """#?#<& #?????????????????? | | ??????# #"## """ < % ?????????????????? | | ??????# #"#"""#?# ## ?????????????????? | | ??????# ## """##??? ##???????????????????? | | ??????##?# ## "#??????#?????????????????????? | | ?????????## ### ""#????????????????????????????? | | ?????????## ### " #????????????????????????????? | | ?????????# # ""####??????????????????????????? | | ?????????# ##" #??????????????????????????? | | ?????????# ## ##????########?????????????? | | ?????????### #???## ## ##?????????#??? | | ???????????### ## ###??# # ###?????? #??? | | ?????????????## ## #??# ####?? ## | | ??????????????# #?## *## | +----------------------------------------------------+ Best States ------------- Heat Dissipation 25 Energy Generation 14 Energy Capacity 250 Matter Stores 300 Matter Capacity 300 Sight Range 16 Terrain Scan Density 10 Armor Coverage 800 Evasion (%) 62 Item Schematics ----------------- None Robot Schematics ------------------ None Fabricated ------------ Nothing Alien Tech Used ----------------- None Achievements -------------- None Challenges ------------ None Player 2 | -11 -10 -10 ---------- Run | Yrd Mat Sub Slots Evolved . | . . . Power . | . . . Propulsion . | . . . Utility . | . . . Weapon . | . . . Parts Attached 15 | . 9 6 Parts Lost 1 | . 1 . Damage Taken 474 | . 229 245 Core 126 | . 55 71 Player 2/Cogmind (%) 47 | . 39 55 Absorbed by Shields . | . . . Damage Inflicted 851 | . 276 575 Player 2/Cogmind (%) 34 | . 23 44 Combat Hostiles Destroyed 11 | . 6 5 Player 2/Cogmind (%) 50 | . 42 62 Game ------ Seed MassCobblerCompanion Manual? 0 Play Time 00:12:52 Cumulative 929.4 hours Start 2024.09.11 @ 12:40:18 End 2024.09.11 @ 12:51:52 Sessions 1 Manual Loads 0 Difficulty Rogue Special Mode AFD2020/Player2 Game No. 1129 Rogue 849 Adventurer 124 Explorer 156 Win Type - Total 39 Types 28/0/8/1/1/0/0/1/0 Lore% 81 Gallery% 90 Achievement% 78 Wizard Run 0 Options --------- Layout 0 ASCII 0 Keyboard 1 Movement Numpad Keybinds 0 Fullscreen 2 Font 18/X11 Map View 76x50 Zoom Use 0% Tactical HUD 1 Map Filters NONE Filters NONE Steam 1 RUN: 22b12166-c24b-48b2-84a4-d3dfd71ede0b